Cogmind - Beta 15 @@@ ROGUE MODE // 2025.06.29 @ 00:28:24 Player: ChemSlug Result: Destroyed by G-34 Mercenary with Small Laser Performance ------------- Evolutions (1) 500 Regions Visited (3) 600 Robots Destroyed (31) 155 Value Destroyed (602) 602 Prototype IDs (0) 0 Alien Tech Used (0) 0 Bonus (-10) -10 TOTAL SCORE: 1847 Bonus ------- Friendly Fire -10 Cogmind --------- Core Integrity 0/400 Matter 10/300 Energy 99/100 System Corruption 8% Temperature Cool (6) Movement Core (50) Location -9/Materials Parts ------- > --- POWER (1) -------- (None) > --- PROPULSION (4) --- (None) > --- UTILITY (2) ------ (None) > --- WEAPON (2) ------- (None) > --- INVENTORY (5) ---- VSS Leg VSS Leg VSS Leg Field Laser Grenade Launcher Peak State ------------ > --- POWER ------------ Ion Engine > --- PROPULSION ------- Carbon-fiber Leg Flight Unit Flight Unit Flight Unit > --- UTILITY ---------- Scrap Suit > --- WEAPON ----------- Light Assault Rifle Rocket Launcher > --- INVENTORY -------- Sensor Array Light Armor Plating Light Assault Rifle [Rating: 18] Favorites ----------- Power Ion Engine Engine Ion Engine Propulsion Flight Unit Treads Light Treads Leg Carbon-fiber Leg Wheel Compact Wheel Hover Unit Hover Unit Flight Unit Flight Unit Utility Sensor Array Device Sensor Array Storage Small Storage Unit Protection Light Armor Plating Weapon Light Assault Rifle Energy Gun Medium Laser Ballistic Gun Light Assault Rifle Launcher Rocket Launcher Build | -11 -10 -10 -9 ------- Run | Yrd Mat Min Mat Slots Evolved 2 | . . . 2 Power . | . . . . Propulsion 2 | . . . 2 Utility . | . . . . Weapon . | . . . . Parts Attached 30 | 2 17 5 6 Power 4 | . 3 . 1 Engine 4 | . 3 . 1 Core . | . . . . Reactor . | . . . . Propulsion 12 | . 6 3 3 Treads 2 | . 2 . . Leg 1 | . . 1 . Wheel 1 | . 1 . . Hover 1 | . 1 . . Flight 7 | . 2 2 3 Utility 8 | 1 5 1 1 Device 5 | . 3 1 1 Storage 2 | 1 1 . . Processor . | . . . . Hackware . | . . . . Protection 1 | . 1 . . Artifact . | . . . . Weapon 6 | 1 3 1 1 Energy Gun 2 | . 1 . 1 Energy Cannon . | . . . . Ballistic Gun 3 | 1 2 . . Ballistic Cannon . | . . . . Launcher 1 | . . 1 . Special Weapon . | . . . . Impact Weapon . | . . . . Slashing Weapon . | . . . . Piercing Weapon . | . . . . Special Melee Weapon . | . . . . Unidentified Prototypes . | . . . . Parts Lost 17 | . 3 . 14 Power 2 | . . . 2 Propulsion 7 | . 2 . 5 Utility 2 | . . . 2 Weapon 6 | . 1 . 5 Highest Loss Streak 6 | . 2 . 6 To Critical Strikes 1 | . . . 1 Average Backups 4 | 4 4 4 4 Power . | 1 . . . Propulsion 1 | 2 1 1 . Utility 1 | . . 3 2 Weapon 1 | 1 1 . . Tool/Special . | . . . . Unused Backups 11 | . 1 3 7 Power . | . . . . Propulsion 4 | . . . 4 Utility 4 | . 1 2 1 Weapon 3 | . . 1 2 Tool/Special . | . . . . Average Slot Usage (%) 76 | . 78 89 57 Engine 12 | . 14 14 6 Treads 4 | . 6 . . Hover 1 | . 2 . . Flight 12 | . 6 26 18 Device 15 | . 15 17 10 Storage 6 | . 9 . . Energy Gun 3 | . 4 . 4 Ballistic Gun 16 | . 16 26 7 Launcher 1 | . . 1 5 Peak Build Rating 18 | 2 7 16 18 Average Rating 7 | 1 5 11 11 On Entrance 6 | . 2 7 16 Naked Turns 8 | . . . 8 Heaviest Build 15 | 6 15 14 14 Greatest Support 40 | 3 40 15 16 Greatest Overweight (x) 4 | 1 4 1 4 Average Overweight (x) . | . 1 . . Largest Inventory Capacity 15 | 8 15 5 5 Average Capacity 6 | 6 7 5 5 Most Carried 8 | 7 8 5 5 Average Carried 4 | 5 4 4 4 Final Capacity 8 | 8 5 5 5 Final Carried 7 | 7 5 5 5 Class Distribution -------------------- 66% | Mutant 23% | Scavenger-Mutant 10% | Scavenger-Scrapper Dominant Class ---------------- Mutant | -10/Materials Scavenger-Scrapper | -10/Mines Mutant | -9/Materials Resources | -11 -10 -10 -9 ----------- Run | Yrd Mat Min Mat Matter Collected 563 | 157 339 15 52 Remotely 42 | . 42 . . Salvage Created 540 | . 416 14 110 Parts 44 | . 24 4 16 Haulers Intercepted . | . . . . Recyclers Shooed 1 | . . . 1 Parts Field Recycled . | . . . . Retrieved Matter . | . . . . Parts Self-Destructed . | . . . . Prevented . | . . . . Kills | -11 -10 -10 -9 ------- Run | Yrd Mat Min Mat Combat Hostiles Destroyed 26 | . 12 3 11 Guns 15 | . 12 2 1 AOE 11 | . . 1 10 Classes Destroyed 7 | . 5 . 2 Worker 1 | . 1 . . Builder 1 | . . . 1 Operator 1 | . 1 . . Watcher 2 | . 1 . 1 Swarmer 15 | . 6 3 6 Grunt 10 | . 6 . 4 Sentry 1 | . . . 1 Best Kill Streak 8 | . 4 2 8 Combat Bots Only 6 | . 4 2 6 Max Kills in Single Turn 4 | . 1 1 4 Gunslinging . | . . . . Exploded 4 | . . 1 4 Melee . | . . . . Uniques/NPCs Destroyed . | . . . . Combat | -11 -10 -10 -9 -------- Run | Yrd Mat Min Mat Hostile Shots Fired 276 | . 92 15 169 Missed 79 | . 17 9 53 Hits 197 | . 75 6 116 Projectile 197 | . 75 6 116 Critical Strikes 5 | . 2 . 3 Damage Taken 2392 | . 763 44 1585 Core 501 | . 91 7 403 Absorbed by Shields . | . . . . Regen/Repaired (Parts) 3 | . . 3 . Core Remaining (%) 80 | 100 . 60 . Volleys Fired 93 | . 57 7 29 Largest 2 | . 2 2 2 Hottest 70 | . 70 53 63 Shots Fired 154 | . 91 13 50 Gun 135 | . 91 11 33 Cannon . | . . . . Launcher 19 | . . 2 17 Special . | . . . . Kinetic 90 | . 55 11 24 Thermal 45 | . 36 . 9 Explosive 19 | . . 2 17 Electromagnetic . | . . . . Robot Hit Streak 9 | . 9 2 6 Robot Miss Streak 6 | . 4 5 6 Penetration Max . | . . . . Secondary Targets 2 | . 2 . . Max Gunslinging Chain 1 | . 1 . . Shots Hit Robots 69 | . 45 4 20 Core Hits 52 | . 25 5 22 Critical Kills 1 | . . 1 . Critical Parts Destroyed . | . . . . Critical Strikes 2 | . 1 1 . Burn 1 | . 1 . . Destroy 1 | . . 1 . Melee Attacks . | . . . . Impact . | . . . . Slashing . | . . . . Piercing . | . . . . Sneak Attacks . | . . . . Combat Hostiles . | . . . . Follow-up Attacks . | . . . . Damage Inflicted 1990 | . 554 189 1247 Guns 703 | . 548 23 132 Cannons . | . . . . Explosions 1281 | . . 166 1115 Melee . | . . . . Ramming 6 | . 6 . . Kinetic 373 | . 283 23 67 Thermal 330 | . 265 . 65 Explosive 1281 | . . 166 1115 Electromagnetic . | . . . . Impact . | . . . . Slashing . | . . . . Piercing . | . . . . Highest Corruption 8 | . 1 1 8 Average Corruption 1 | . 1 1 8 Corruption Purged . | . . . . Corruption Blocked . | . . . . Effects 18 | . 7 4 7 Message Errors 8 | . 2 1 5 Matter Fused 2 | . . 1 1 Heat Flow Errors 3 | . 1 2 . Energy Discharges 1 | . 1 . . Parts Rejected 2 | . 1 . 1 Data Loss (minor) 1 | . 1 . . Misfires 1 | . 1 . . Overload Shots . | . . . . Overflow Damage 80 | . . 30 50 Projectiles . | . . . . Explosions 80 | . . 30 50 Melee . | . . . . Knockbacks . | . . . . Impact . | . . . . Kinetic . | . . . . Secondary . | . . . . Self-Inflicted Damage 2 | . 2 . . Shots . | . . . . Rammed 2 | . 2 . . Targets Rammed 2 | . 2 . . Kicked . | . . . . Crushed . | . . . . Highest Temperature 195 | . 195 178 40 Average Temperature 52 | . 63 61 11 Received Heat Transfer 711 | . 243 . 468 Siege Activations . | . . . . Martial Activations . | . . . . Shielding Activations . | . . . . Robots Disrupted . | . . . . Combat Hostiles . | . . . . Robots Corrupted . | . . . . Combat Hostiles . | . . . . Parts Fried . | . . . . Impact Corruptions . | . . . . Robots Melted . | . . . . Combat Hostiles . | . . . . Parts Melted . | . . . . Heat Transferred 1001 | . 851 . 150 Parts Sabotaged . | . . . . Parts Stolen . | . . . . Parts Stripped . | . . . . Power Chain Reactions . | . . . . Alert | -11 -10 -10 -9 ------- Run | Yrd Mat Min Mat Maximum Alert Level 1 | . . . 1 Low Security (%) 94 | 100 100 100 71 Level 1 5 | . . . 28 Level 2 . | . . . . Level 3 . | . . . . Level 4 . | . . . . Level 5 . | . . . . High Security . | . . . . Max Security . | . . . . Peak Influence 250 | . 107 58 250 Initial 18 | . . . 18 Average 40 | . 24 4 130 Influence Increases 830 | . 311 88 431 Destroy 0b10 Robot/C 520 | . 240 60 220 Destroy 0b10 Robot/NC 25 | . 15 . 10 Destroy Leader 104 | . 52 10 42 Successful Hack 4 | . 4 . . Destroy Structure 102 | . . 18 84 Lose Combat Pursuer 75 | . . . 75 Influence Decreases 669 | . 311 40 318 Entered New Map 30 | . . . 30 Time Decay 469 | . 281 40 148 Lost Part 170 | . 30 . 140 Squads Dispatched 5 | . 2 . 3 Investigation 1 | . . . 1 Extermination . | . . . . Reinforcement 4 | . 2 . 2 Assault . | . . . . Garrison . | . . . . Intercept . | . . . . Searches Triggered . | . . . . Construction Impeded 1 | . . . 1 Haulers Reinforced . | . . . . Active Scanning Responses . | . . . . Cargo Convoy Interrupts . | . . . . Stealth | -11 -10 -10 -9 --------- Run | Yrd Mat Min Mat Distress Signals 3 | . . . 3 Communications Jammed . | . . . . Distress Signals . | . . . . Times Spotted 60 | . 30 5 25 Peak Tracking Total 6 | . 5 3 6 Tactical Retreats 3 | . . . 3 Traps | -11 -10 -10 -9 ------- Run | Yrd Mat Min Mat Traps Triggered 2 | . 2 . . Indirectly . | . . . . Trap Hack Attempts . | . . . . Triggered . | . . . . Disarmed . | . . . . Reprogrammed . | . . . . Reused . | . . . . Traps Extracted . | . . . . Installed . | . . . . Triggered . | . . . . Machines | -11 -10 -10 -9 ---------- Run | Yrd Mat Min Mat Machines Disabled . | . . . . Max in Single Turn . | . . . . Machines Repaired . | . . . . Machines Dismantled . | . . . . Machines Sabotaged . | . . . . Overloaded Fab Kills . | . . . . Hacking | -11 -10 -10 -9 --------- Run | Yrd Mat Min Mat Machines Accessed 2 | . 1 . 1 Terminals 2 | . 1 . 1 Fabricators . | . . . . Repair Stations . | . . . . Recycling Units . | . . . . Scanalyzers . | . . . . Garrison Access . | . . . . Total Hacks 6 | . 3 . 3 Successful 2 | . 2 . . Failed 4 | . 1 . 3 Catastrophic . | . . . . Database Lockouts . | . . . . Manual . | . . . . Terminals 6 | . 3 . 3 Fabricators . | . . . . Repair Stations . | . . . . Recycling Units . | . . . . Scanalyzers . | . . . . Garrison Access . | . . . . Terminal Hacks 2 | . 2 . . Dispatch Records 1 | . 1 . . Investigation Status 1 | . 1 . . Fabricator Hacks . | . . . . Repair Station Hacks . | . . . . Recycling Unit Hacks . | . . . . Scanalyzer . | . . . . Garrison Access Hacks . | . . . . Unauthorized Hacks . | . . . . Terminals . | . . . . Fabricators . | . . . . Repair Stations . | . . . . Recycling Units . | . . . . Scanalyzers . | . . . . Garrison Access . | . . . . Data Cores Recovered . | . . . . Used . | . . . . Hacking Detections 2 | . 1 . 1 Full Trace Events 1 | . . . 1 Feedback Events . | . . . . Feedback Blocked . | . . . . Robot Schematics Acquired . | . . . . Robots Built . | . . . . Authchips . | . . . . Time . | . . . . Total Robot Build Rating . | . . . . Part Schematics Acquired . | . . . . Parts Built . | . . . . Authchips . | . . . . Time . | . . . . Total Part Build Rating . | . . . . Parts Repaired . | . . . . Time . | . . . . Parts Recycled . | . . . . Recycled Matter . | . . . . Retrieved Matter . | . . . . Retrieved Components . | . . . . Parts Scanalyzed . | . . . . Part Schematics Acquired . | . . . . Parts Damaged . | . . . . Bothacking | -11 -10 -10 -9 ------------ Run | Yrd Mat Min Mat Used RIF Installer . | . . . . Robots Hacked . | . . . . Non-combat . | . . . . Combat . | . . . . Robot Hacks Applied . | . . . . Relay Couplers Released . | . . . . Fabnet Peak Effective % . | . . . . Robots Rewired . | . . . . Allies Hacked . | . . . . Hacks Repelled . | . . . . Allies | -11 -10 -10 -9 -------- Run | Yrd Mat Min Mat Total Allies . | . . . . Largest Group . | . . . . Highest-Rated Group . | . . . . Highest-Rated Ally . | . . . . Total Orders . | . . . . Ally Attacks . | . . . . Total Damage . | . . . . Kills . | . . . . Allies Corrupted . | . . . . Allies Melted . | . . . . Intel | -11 -10 -10 -9 ------- Run | Yrd Mat Min Mat Active Infowar (turns) 1393 | . 1196 79 118 Sensors 1274 | . 1196 78 . Terrain 118 | . . . 118 Seismic 193 | . 114 79 . Robot Analysis Total . | . . . . Derelict Logs Recovered . | . . . . Drone Launches . | . . . . Drone Recoveries . | . . . . Exploration | -11 -10 -10 -9 ------------- Run | Yrd Mat Min Mat Turns Passed 2063 | 46 1341 308 368 Spaces Moved 1507 | 47 960 233 267 Core 390 | 47 236 . 107 Treads 140 | . 140 . . Legs 93 | . . 14 79 Wheels 49 | . 49 . . Hover 197 | . 197 . . Flight 638 | . 338 219 81 Fastest Speed 31 | 50 37 117 31 Average Speed 114 | 77 120 117 100 Slowest Speed 250 | 100 250 120 250 Overloaded Moves . | . . . . Propulsion Burnouts . | . . . . Robots Hopped 6 | . 5 . 1 Potential Cave-ins . | . . . . Cave-ins Triggered 1 | . . . 1 Exploration Rate (%) 44 | 2 95 57 25 Regions Visited 3 Branch Regions 1 Pre-discovered Areas . | . . . . Known Exits Taken . | . . . . Unknown Exits Taken 3 | 1 1 1 . Scrap Searched . | . . . . Spaces Dug . | . . . . Terrain Destroyed 114 | . . 21 93 Melee . | . . . . Projectile . | . . . . AOE 114 | . . 21 93 Terrain Rammed . | . . . . Walls Destroyed . | . . . . Machines Disabled . | . . . . Actions | -11 -10 -10 -9 --------- Run | Yrd Mat Min Mat Total 1696 | 55 1057 260 324 Wait . | . . . . Move 1492 | 46 949 232 265 Hop 6 | . 5 . 1 Pick Up 39 | 7 14 6 12 Fast Attach 4 | 2 1 . 1 Attach 22 | . 13 2 7 Detach 1 | . 1 . . Swap 13 | . 7 4 2 Drop 24 | . 8 9 7 Fire 93 | . 57 7 29 Melee . | . . . . Ram 2 | . 2 . . Kick . | . . . . Crush . | . . . . Escape Stasis . | . . . . Rewire . | . . . . Trap . | . . . . Miscellaneous . | . . . . Route ------- -11/Scrapyard -10/Materials (discovered 5 exits: *Mat x3 / [*Min x2]) -10/Mines -9/Materials History --------- Turn | Location | Event 5 | -11/Scrapyard | Discovered new exit (range 16) 47 | -11/Scrapyard | Entered Materials 238 | -10/Materials | Discovered new exit (range 11) 308 | -10/Materials | Build established: Mutant 513 | -10/Materials | Discovered new exit (range 7) 741 | -10/Materials | Discovered new exit (range 11) 904 | -10/Materials | Discovered new exit (range 13) 1323 | -10/Materials | Discovered new exit (range 6) 1388 | -10/Materials | Entered Mines 1448 | -10/Mines | Build established: Scavenger-Mutant 1451 | -10/Mines | Found a Scrap Suit stashed away for nefarious purposes 1459 | -10/Mines | Found Scrap Suit 1577 | -10/Mines | Received a Rocket Launcher from a helpful Derelict 1680 | -10/Mines | Discovered new exit (range 14) 1696 | -10/Mines | Entered Materials 1696 | -9/Materials | Evolved 2 slots: Propulsion x2 1869 | -9/Materials | Crushed by falling debris 1913 | -9/Materials | Lost 6 parts (1p3n2w) 1986 | -9/Materials | Core integrity fell below 50% 1998 | -9/Materials | Core integrity fell below 20% 2019 | -9/Materials | Lost 6 parts (1p1n2u2w) 2064 | -9/Materials | Destroyed by G-34 Mercenary with Small Laser Last Messages --------------- Acquired Field Laser. T-07 Excavator is excavating. Lgt. Armor Plating destroyed. T-07 Excavator is excavating. 3HIAWP6=JYSKC LXMC5ZWUNNAJYHJ N R-06 Scavenger collects Lgt. Assault Rifle. O-16 Technician: "IFF HANDSHAKE FAILED. SECURING TERMINAL." R-06 Scavenger collects VSS Leg. K-01 Serf collects debris. ALERT: Hostiles spotted, dispatching reinforcements to Terminal M009. NUMFVZQP,J10>GA =UUXLGQ K-01 Serf collects debris. Dropped Particle Charger. Acquired Grenade Launcher. K-01 Serf collects debris. System corrupted: Terrain Scanner rejected. Field Laser destroyed. K-01 Serf collects debris. Map ----- +----------------------------------------------------+ | | | | | | | | | | | | | | | | | | | | | | | | | | | | | | | | | | | | | | | | | | | ?????????????????????????????????????????????????? | | ???????????????????????????????#########?????????? | | ???????????????????????????????# #?????????? | | ????????######################## #?????????? | | ??????? @ + #?????????? | | ??????? #########?????????? | | ??????? g # ] #??????????? | | ??????? g ##### !+ ]#??????????? | | ??????? ????# g# #??????????? | | ???????? ?????# # #??????????? | | ???????? ?????# +| #??????????? | | ????????? ??????# # #??????????? | | ????????? ??????# ##+#####??????????? | | ????????? ?????#?# #??????????????? | | ?????????? ?? ????# ##### #??????????????? | | ??????????########???????## #???# #?????????#####? | | ??????????????????????????# #??## ##??? ????# ## | | ????????????????????????###+#### #????????# # | | ????????????????????????# + " +????#???# #! | | ????????????????????????# # #????????# # | | ????????????????????????# ! ## ##????????# # | | ????????????????????????#! ## #?????????# + | | ?????????????????? ?????# "T" ## #?????????# # | | ????????????????????????# ## #???????#?# # | | ????????????????????????######### #????????## # | | ????????????????????????????????# #????????# # | | ?????????????????????????????#??# #????????# ## | | ???????????????????????? ########"#????????# #? | | ?????????????????????????# #????????# #? | +----------------------------------------------------+ Best States ------------- Heat Dissipation 28 Energy Generation 10 Energy Capacity 250 Matter Stores 300 Matter Capacity 300 Sight Range 16 Robot Scan Range 14 Terrain Scan Range 14 Terrain Scan Density 10 Armor Coverage 150 Evasion (%) 62 Recoil Reduction 2 Item Schematics ----------------- None Robot Schematics ------------------ None Fabricated ------------ Nothing Repaired ---------- Nothing Alien Tech Used ----------------- None Achievements -------------- None Challenges ------------ None Game ------ Seed ActiveImpactUnit Manual? 0 Play Time 00:29:19 Cumulative 5.4 hours Start 2025.06.29 @ 00:01:50 End 2025.06.29 @ 00:28:24 Sessions 1 Manual Loads 0 Difficulty Rogue Special Mode None Game No. 12 Rogue 12 Adventurer 0 Explorer 0 Win Type - Total 0 Types 0/0/0/0/0/0/0/0/0/0 Lore% 0 Gallery% 11 Achievement% 8 Wizard Run 0 Options --------- Layout 1 ASCII 0 Keyboard 0 Movement Mouse Keybinds 0 Fullscreen 1 Font 20/SmallcapsGlow Map View 50x35 Zoom Use 0% Tactical HUD 0 Map Filters NONE Filters NONE Steam 1 RUN: 5994b4f8-a0dc-4783-babf-936e344d692b